[Event "24th Bosnjaci Open 2019"]
[Site "Bosnjaci"]
[Date "2019.01.08"]
[Round "8.13"]
[White "Duda, Daniel"]
[Black "Ljikar, Zoran"]
[Result "1/2-1/2"]
[ECO "A87"]
[WhiteElo "1991"]
[BlackElo "2207"]
[Annotator "RC"]
[PlyCount "31"]
[EventDate "2019.01.03"]
[EventType "swiss"]
[EventCountry "CRO"]
[SourceTitle "playchess.com"]
[Source "ChessBase"]
[SourceQuality "1"]
[TimeControl "5400+30"]

1. d4 {[%emt 0:00:30]} f5 {[%emt 0:01:30]} 2. g3 {[%emt 0:00:00]} Nf6 {[%emt 0:00:30]} 3. Bg2 {[%emt 0:00:00]} d6 {[%emt 0:00:00]} 4. Nf3 {[%emt 0:00:30]} g6 {[%emt 0:00:00]} 5. O-O {[%emt 0:01:30]} Bg7 {[%emt 0:00:00]} 6. b3 {[%emt 0:02:30]} O-O {[%emt 0:05:00]} 7. Bb2 {[%emt 0:01:30]} c6 {[%emt 0:00:30]} 8. Nbd2 {[%emt 0:06:30]} Nbd7 {[%emt 0:06:30]} 9. c4 {[%emt 0:05:30]} Qe8 {[%emt 0:00:30]} 10. e4 {[%emt 0:08:30]} fxe4 {[%emt 0:03:30]} 11. Ng5 {[%emt 0:03:30]} e3 {[%emt 0:03:30]} 12. fxe3 {[%emt 0:02:30]} e5 {[%emt 0:00:00]} 13. Nde4 {[%emt 0:14:30]} Nxe4 {[%emt 0:16:00]} 14. Nxe4 {[%emt 0:03:30]} Rxf1+ {[%emt 0:00:30]} 15. Qxf1 {[%emt 0:01:30]} Qe7 {[%emt 0:00:30]} 16. Rd1 {[%emt 0:08:30]} 1/2-1/2

[Event "24th Bosnjaci Open 2019"]
[Site "Bosnjaci"]
[Date "2019.01.08"]
[Round "8.14"]
[White "Tomas, Ante"]
[Black "Jelic, Ivan"]
[Result "1-0"]
[ECO "E01"]
[WhiteElo "2102"]
[BlackElo "1937"]
[Annotator "NA"]
[PlyCount "41"]
[EventDate "2019.01.03"]
[EventType "swiss"]
[EventCountry "CRO"]
[SourceTitle "playchess.com"]
[Source "ChessBase"]
[SourceQuality "1"]
[TimeControl "5400+30"]

{[%evp 15,39,13,73,80,131,32767,32767,32767,136,106,129,127,155,133,173,174,372,432,389,434,399,439,434,362,349,360]} 1. Nf3 {[%emt 0:00:30]} d5 {[%emt 0:00:30]} 2. d4 {[%emt 0:01:30]} Nf6 {[%emt 0:01:30]} 3. c4 {[%emt 0:00:30]} e6 {[%emt 0:02:30]} 4. g3 {[%emt 0:00:30]} c5 {[%emt 0:03:30]} 5. cxd5 {[%emt 0:04:30]} Nxd5 {[%emt 0:01:30]} 6. Bg2 {[%emt 0:00:30]} cxd4 {[%emt 0:01:30] E01: Catalan: Early deviations} 7. O-O {[%emt 0:03:30]} Bc5 {[%emt 0:06:30]} 8. Nxd4 {[%emt 0:06:30] LiveBook: 10 Games} Bxd4 $146 {[%emt 0:03:30]} ({Predecessor:} 8... O-O 9. Nc3 Bb6 10. Nxd5 exd5 11. Be3 Nc6 12. Rc1 Qf6 13. Nxc6 bxc6 {½-½ (31) Buhmann,R (2594)-Sebenik,M (2543) Austria 2012}) 9. Qxd4 {[%emt 0:00:30]} Qf6 {[%emt 0:03:30]} ({Better is} 9... O-O $14) 10. Qxf6 {[%emt 0:10:30]} Nxf6 {[%emt 0:00:30]} 11. Nc3 {[%emt 0:00:30]} O-O {[%emt 0:04:30]} 12. Bg5 {[%emt 0:03:30]} Nbd7 {[%emt 0:02:30]} 13. Nb5 {[%emt 0:04:30]} a6 {[%emt 0:09:30]} 14. Nd6 {[%emt 0:02:30]} Rb8 {[%emt 0:00:30]} 15. Rac1 {[%emt 0:03:30]} Nd5 $2 {[%emt 0:10:30]} (15... b6 16. b4 a5) 16. Bxd5 {[%emt 0:00:30]} exd5 {[%emt 0:00:30]} 17. Be7 {[%emt 0:00:30] Trapped Piece} Nb6 {[%emt 0:00:30]} 18. Bxf8 {[%emt 0:00:30]} Kxf8 {[%emt 0:01:30]} 19. Nxc8 {[%emt 0:00:30]} Nxc8 {[%emt 0:00:30]} 20. Rfd1 $18 {[%emt 0:02:30]} Nb6 {[%emt 0:04:30]} 21. Rc7 {[%emt 0:01:30]} 1-0

[Event "24th Bosnjaci Open 2019"]
[Site "Bosnjaci"]
[Date "2019.01.08"]
[Round "8.15"]
[White "Borzan, Andrej"]
[Black "Ascic, Anto"]
[Result "1/2-1/2"]
[ECO "A50"]
[WhiteElo "1818"]
[BlackElo "2093"]
[Annotator "NA"]
[PlyCount "51"]
[EventDate "2019.01.03"]
[EventType "swiss"]
[EventCountry "CRO"]
[SourceTitle "playchess.com"]
[Source "ChessBase"]
[SourceQuality "1"]
[TimeControl "5400+30"]

1. d4 {[%emt 0:00:30]} Nf6 {[%emt 0:00:30]} 2. c4 {[%emt 0:00:00]} e6 {[%emt 0:00:00]} 3. Nc3 {[%emt 0:00:00]} b6 {[%emt 0:01:00]} 4. Bg5 {[%emt 0:00:30]} Bb7 {[%emt 0:00:30]} 5. e3 {[%emt 0:00:30] A50: Queen's Fianchetto Defence (1 d4 Nf6 2 c4 b6)} Be7 {[%emt 0:00:30]} 6. f3 {[%emt 0:01:30]} (6. Nf3 Ne4 7. Nxe4 Bxe4 8. h4 Bxg5 9. Nxg5 Bb7 10. d5 Qe7 11. Qd2 Na6 12. Rd1 h6 13. Nf3 Nc5 14. Be2 a5 {½-½ (49) Akobian,V (2673)-Stupak,K (2564) Khanty-Mansiysk 2017}) 6... c5 $146 {[%emt 0:00:00]} ({Predecessor:} 6... d5 7. Bd3 O-O 8. Qc2 Nbd7 9. Nge2 dxc4 10. Bxc4 Nd5 11. Bxd5 Bxd5 12. Bxe7 Qxe7 {1-0 (61) Kvisth,B (1752)-Paetzke,B (1279) Rostock 2016}) 7. Bd3 {[%emt 0:01:30]} Nc6 {[%emt 0:02:00]} 8. Nge2 {[%emt 0:00:30]} O-O {[%emt 0:05:30]} 9. O-O {[%emt 0:01:30]} d6 {[%emt 0:00:30]} 10. a3 {[%emt 0:01:30]} Rc8 {[%emt 0:09:30]} 11. Qc2 {[%emt 0:01:30]} h6 {[%emt 0:00:00]} 12. Bh4 {[%emt 0:00:30]} cxd4 {[%emt 0:05:00]} 13. exd4 {[%emt 0:00:00]} Na5 {[%emt 0:01:30]} 14. b3 {[%emt 0:02:00]} d5 {[%emt 0:02:30]} 15. Qa2 {[%emt 0:08:30]} Ba6 {[%emt 0:05:30]} 16. Nb5 {[%emt 0:03:30]} Qd7 {[%emt 0:00:30]} 17. Rab1 {[%emt 0:00:30]} Rc6 {[%emt 0:18:30]} (17... dxc4 $15 18. bxc4 e5) 18. Rfc1 {[%emt 0:03:30]} Rfc8 {[%emt 0:00:30]} 19. a4 {[%emt 0:01:30]} Bb4 {[%emt 0:02:30]} (19... Ra8 $11) 20. Rc2 {[%emt 0:02:30]} (20. Bxf6 $1 $14 gxf6 21. Rd1) 20... Ne8 {[%emt 0:09:30]} 21. Be1 {[%emt 0:04:30]} Bxe1 {[%emt 0:00:30]} 22. Rxe1 {[%emt 0:00:30]} Nd6 {[%emt 0:01:30] [#]} (22... dxc4 $11 {remains equal.} 23. bxc4 Nf6) 23. Rec1 {[%emt 0:00:30]} (23. c5 $1 $16 {[%mdl 512]}) 23... dxc4 $11 {[%emt 0:03:30]} 24. bxc4 {[%emt 0:00:30]} Bxb5 {[%emt 0:01:30]} 25. cxb5 {[%emt 0:00:30]} Rxc2 {[%emt 0:02:30]} 26. Rxc2 {[%emt 0:00:00]} 1/2-1/2

[Event "24th Bosnjaci Open 2019"]
[Site "Bosnjaci"]
[Date "2019.01.08"]
[Round "8.16"]
[White "Dabic, Stjepan"]
[Black "Mikic, Ivana"]
[Result "1-0"]
[ECO "B14"]
[WhiteElo "2077"]
[BlackElo "1739"]
[Annotator "NA"]
[PlyCount "91"]
[EventDate "2019.01.03"]
[EventType "swiss"]
[EventCountry "CRO"]
[SourceTitle "playchess.com"]
[Source "ChessBase"]
[SourceQuality "1"]
[TimeControl "5400+30"]

1. d4 {[%emt 0:00:30]} Nf6 {[%emt 0:00:30]} 2. c4 {[%emt 0:00:00]} e6 {[%emt 0:00:00]} 3. Nc3 {[%emt 0:00:00]} Bb4 {[%emt 0:00:00]} 4. Bd2 {[%emt 0:00:30]} O-O {[%emt 0:00:30]} 5. e3 {[%emt 0:00:00]} d5 {[%emt 0:00:30]} 6. Nf3 {[%emt 0:00:00] LiveBook: 246 Games} c5 {[%emt 0:00:30]} 7. Bd3 {[%emt 0:02:30]} dxc4 {[%emt 0:00:30]} 8. Bxc4 {[%emt 0:00:00]} cxd4 {[%emt 0:00:30]} 9. exd4 {[%emt 0:00:00]} b6 {[%emt 0:01:30]} 10. a3 {[%emt 0:01:30]} Be7 {[%emt 0:01:30]} 11. O-O {[%emt 0:00:30]} Bb7 {[%emt 0:00:30]} 12. Be3 {[%emt 0:00:30]} Nc6 {[%emt 0:00:30]} 13. Qe2 {[%emt 0:00:30]} Rc8 {[%emt 0:01:30] B14: Caro-Kann: Panov-Botvinnik Attack with 5...e6 and 5...g6} 14. Rfd1 {[%emt 0:03:30]} (14. Bd3 Nd5 15. Rad1 Na5 16. Ne4 Nf6 17. Nc3 Nd5 18. Ne4 Nf6 19. Nxf6+ Bxf6 20. Ne5 Qd5 21. Qg4 g6 22. f3 {0-1 (35) Flores,D (2558)-Vescovi,G (2617) Linares 2008}) 14... Na5 {[%emt 0:01:30]} 15. Ba6 {[%emt 0:03:30]} Nd5 {[%emt 0:06:30]} 16. Bxb7 {[%emt 0:02:30]} Nxc3 $146 {[%emt 0:00:30]} ({Predecessor:} 16... Nxb7 17. Nxd5 Qxd5 18. Qa6 Bd6 19. Rdc1 Bb8 20. b4 Nd6 21. Ne5 {1-0 (44) Davidenko,H (2080)-Iliopoulos,A (2045) Kallithea 2003}) 17. bxc3 {[%emt 0:00:00]} Nxb7 {[%emt 0:00:30]} 18. c4 {[%emt 0:01:00]} Na5 {[%emt 0:00:30]} 19. Nd2 {[%emt 0:00:30]} Bf6 {[%emt 0:03:30]} 20. Rab1 {[%emt 0:06:30]} Qe7 {[%emt 0:03:30]} 21. c5 $1 {[%emt 0:02:30]} bxc5 {[%emt 0:04:30]} 22. dxc5 {[%emt 0:00:30]} Bg5 {[%emt 0:11:30]} 23. f4 {[%emt 0:02:30]} Bf6 {[%emt 0:00:30]} 24. Ne4 {[%emt 0:01:30]} Rfd8 {[%emt 0:05:30]} 25. Qa6 {[%emt 0:05:30]} Nc6 {[%emt 0:08:30]} 26. Rd6 {[%emt 0:04:30]} Nb8 {[%emt 0:03:30]} 27. Qb7 {[%emt 0:04:30]} Qxb7 {[%emt 0:05:30]} 28. Rxb7 {[%emt 0:00:30]} a6 {[%emt 0:01:30]} 29. Rdb6 {[%emt 0:01:30]} Nd7 {[%emt 0:03:30]} 30. Rxa6 {[%emt 0:01:30]} Be7 {[%emt 0:01:30]} 31. Nd6 {[%emt 0:14:30]} Rb8 {[%emt 0:07:30]} 32. Raa7 {[%emt 0:02:30]} Rxb7 {[%emt 0:02:30]} 33. Rxb7 {[%emt 0:01:30]} (33. Nxb7 $142 Rc8 34. Nd6) 33... Bxd6 {[%emt 0:00:30]} (33... Kf8 $16 {was necessary.}) 34. cxd6 {[%emt 0:00:30]} h6 {[%emt 0:01:30]} 35. Bd2 {[%emt 0:07:30]} ({Better is} 35. Ba7 $18) 35... Nc5 {[%emt 0:01:30]} 36. Rb6 {[%emt 0:00:30]} Rc8 {[%emt 0:01:30]} 37. Kf1 {[%emt 0:03:30]} Ne4 {[%emt 0:01:30]} 38. Bb4 {[%emt 0:00:30]} Nf6 {[%emt 0:01:30]} 39. g3 {[%emt 0:05:30]} Nd5 $2 {[%emt 0:00:30] [#]} (39... Rd8 40. Rc6 Ra8) 40. Rc6 $1 {[%emt 0:00:30]} Rd8 {[%emt 0:00:45]} 41. Ba5 {[%emt 0:01:30]} Rd7 {[%emt 0:00:32]} 42. Bc7 {[%emt 0:01:30]} Kf8 {[%emt 0:01:23]} 43. a4 {[%emt 0:00:00]} Ke8 {[%emt 0:00:09]} 44. a5 {[%emt 0:00:00]} f6 $18 {[%emt 0:01:04]} 45. a6 {[%emt 0:00:00]} Nxc7 {[%emt 0:00:51]} 46. dxc7 {[%emt 0:00:00]} 1-0

[Event "24th Bosnjaci Open 2019"]
[Site "Bosnjaci"]
[Date "2019.01.08"]
[Round "8.18"]
[White "Dinic, Nenad"]
[Black "Potlimbrzovic, Zdenko"]
[Result "1/2-1/2"]
[ECO "B09"]
[WhiteElo "1881"]
[BlackElo "2094"]
[Annotator "NA"]
[PlyCount "39"]
[EventDate "2019.01.03"]
[EventType "swiss"]
[EventCountry "CRO"]
[SourceTitle "playchess.com"]
[Source "ChessBase"]
[SourceQuality "1"]
[TimeControl "5400+30"]

{[%evp 22,39,92,44,81,45,44,45,39,31,56,40,50,43,52,46,45,37,41,37]} 1. e4 {[%emt 0:01:30]} d6 {[%emt 0:00:30]} 2. d4 {[%emt 0:00:00]} Nf6 {[%emt 0:00:30]} 3. Nc3 {[%emt 0:00:00]} g6 {[%emt 0:01:30]} 4. f4 {[%emt 0:00:30]} Bg7 {[%emt 0:00:30]} 5. e5 {[%emt 0:01:30]} dxe5 {[%emt 0:00:30]} 6. dxe5 {[%emt 0:00:30]} Qxd1+ {[%emt 0:00:30]} 7. Kxd1 {[%emt 0:00:30]} Ng4 {[%emt 0:00:30]} 8. Ke1 {[%emt 0:00:30]} c6 {[%emt 0:02:30]} 9. h3 {[%emt 0:04:30]} Nh6 {[%emt 0:00:00] B09: Pirc Defence: Austrian Attack} 10. g4 {[%emt 0:00:30]} (10. Nf3 Nd7 11. g4 Nb6 12. Rh2 Bd7 13. Be3 f6 14. Rd2 Nf7 15. Rad1 O-O-O 16. exf6 exf6 17. Bd4 {½-½ (103) Rogulj,B (2380)-Kristovic,M (2284) Zagreb 2016}) 10... Be6 {[%emt 0:03:00]} 11. Be3 {[%emt 0:04:30]} Nd7 $146 {[%emt 0:10:30]} ({Predecessor:} 11... f6 12. exf6 exf6 13. Rh2 Kf7 14. Rd2 Re8 15. Ne4 Bf8 16. f5 Bd5 17. Nd6+ Bxd6 18. Kf2 Rxe3 19. Kxe3 Bc5+ {0-1 (19) Gross,O-Bock,K Dortmund 1987}) 12. Bg2 {[%emt 0:13:30]} ({Better is} 12. Nf3 $16) 12... Nb6 {[%emt 0:09:30]} 13. Rd1 {[%emt 0:02:30]} f6 {[%emt 0:07:30]} 14. exf6 {[%emt 0:11:30]} exf6 {[%emt 0:00:30]} 15. Nge2 {[%emt 0:02:30]} f5 {[%emt 0:04:30]} 16. g5 {[%emt 0:01:30]} Nf7 {[%emt 0:00:30]} 17. b3 {[%emt 0:05:30]} O-O {[%emt 0:02:30]} 18. Kf2 {[%emt 0:02:30]} Rfd8 {[%emt 0:00:30]} 19. Rxd8+ {[%emt 0:00:30]} Rxd8 {[%emt 0:00:30]} 20. Rd1 $14 {[%emt 0:00:30]} 1/2-1/2

[Event "24th Bosnjaci Open 2019"]
[Site "Bosnjaci"]
[Date "2019.01.08"]
[Round "8.19"]
[White "Mutapcic, Ilija"]
[Black "Caric, Mato"]
[Result "1/2-1/2"]
[ECO "B55"]
[WhiteElo "1836"]
[BlackElo "2088"]
[Annotator "NA"]
[PlyCount "39"]
[EventDate "2019.01.03"]
[EventType "swiss"]
[EventCountry "CRO"]
[SourceTitle "playchess.com"]
[Source "ChessBase"]
[SourceQuality "1"]
[TimeControl "5400+30"]

1. e4 {[%emt 0:00:30]} c5 {[%emt 0:00:30]} 2. Nf3 {[%emt 0:00:30]} d6 {[%emt 0:00:30]} 3. d4 {[%emt 0:00:00]} cxd4 {[%emt 0:00:00]} 4. Nxd4 {[%emt 0:00:00]} Nf6 {[%emt 0:00:00]} 5. f3 {[%emt 0:01:30]} a6 {[%emt 0:00:30]} 6. c3 {[%emt 0:00:30]} e5 {[%emt 0:00:30]} 7. Ne2 {[%emt 0:00:30]} b5 {[%emt 0:00:30]} 8. Bg5 {[%emt 0:00:30]} Qb6 {[%emt 0:00:00]} 9. Bxf6 {[%emt 0:00:30]} gxf6 {[%emt 0:00:00]} 10. Ng3 {[%emt 0:00:30]} Be6 {[%emt 0:00:00]} 11. a3 {[%emt 0:01:30]} Nc6 {[%emt 0:00:00]} 12. Nd2 {[%emt 0:00:30]} Rd8 {[%emt 0:00:30]} 13. b3 {[%emt 0:02:30]} Be7 {[%emt 0:00:30]} 14. Qc2 {[%emt 0:00:30]} Qe3+ {[%emt 0:01:30]} 15. Be2 {[%emt 0:00:00]} Rc8 {[%emt 0:00:30]} 16. Ndf1 {[%emt 0:01:00]} Qc5 {[%emt 0:00:30]} 17. b4 {[%emt 0:00:30]} Qb6 {[%emt 0:00:00]} 18. Qd2 {[%emt 0:00:30]} a5 {[%emt 0:01:00]} 19. Ne3 {[%emt 0:00:30]} Ra8 {[%emt 0:00:30]} 20. Nd5 {[%emt 0:00:30]} 1/2-1/2

[Event "24th Bosnjaci Open 2019"]
[Site "Bosnjaci"]
[Date "2019.01.08"]
[Round "8.21"]
[White "Katic, Zeljko"]
[Black "Pleh, Semir"]
[Result "0-1"]
[ECO "B33"]
[WhiteElo "2035"]
[BlackElo "1767"]
[Annotator "NA"]
[PlyCount "74"]
[EventDate "2019.01.03"]
[EventType "swiss"]
[EventCountry "CRO"]
[SourceTitle "playchess.com"]
[Source "ChessBase"]
[SourceQuality "1"]
[TimeControl "5400+30"]

{[%evp 17,74,-175,32767,-10,16,-18,-9,-131,-136,-143,-117,-108,19,21,31,18,20,18,19,15,30,0,51,0,0,-14,-4,-2,3,-28,-23,-183,-250,32767,-225,-280,32767,-258,-282,32767,-246,32767,-341,-442,32767,-469,-491,-513,-515,-508,-379,-612,-644,32767,-676,32767,32767,-29991,-1666]} 1. e4 {[%emt 0:05:30]} c5 {[%emt 0:00:30]} 2. Nf3 {[%emt 0:00:30]} Nc6 {[%emt 0:00:30]} 3. d4 {[%emt 0:01:30]} cxd4 {[%emt 0:00:30]} 4. Nxd4 {[%emt 0:00:30]} Nf6 {[%emt 0:00:00]} 5. f3 {[%emt 0:00:30]} a6 {[%emt 0:01:00] B33: Sicilian: Pelikan and Sveshnikov Variations} (5... d5 6. Bb5 dxe4 7. Nxc6 Qxd1+ 8. Kxd1 a6 9. Nd4+ axb5 10. Nxb5 Kd8 11. N1c3 e5 12. fxe4 Bg4+ 13. Ke1 {½-½ (54) Schuster,P (2541)-Ilyes,P (2549) ICCF email 2003}) 6. Bc4 {[%emt 0:03:30]} e6 {[%emt 0:06:30]} 7. a3 {[%emt 0:01:30]} Bc5 {[%emt 0:00:30]} 8. Be3 {[%emt 0:02:30]} Qb6 {[%emt 0:02:30]} 9. c3 $146 {[%emt 0:06:30]} ({Predecessor:} 9. Nxc6 Bxe3 10. Nb4 Bf2+ 11. Kf1 Bc5 12. Nd3 O-O 13. Nc3 Be7 {½-½ (23) Aakio,S (2123)-Almi,O Finland 2009}) 9... O-O {[%emt 0:02:30]} 10. b4 {[%emt 0:00:30]} Bxd4 {[%emt 0:04:30]} 11. cxd4 {[%emt 0:03:30]} d5 {[%emt 0:00:30]} 12. e5 {[%emt 0:01:30]} (12. exd5 $11 {remains equal.} exd5 13. Be2) 12... Nxe5 {[%emt 0:01:30] Pin} 13. Bb3 {[%emt 0:07:30]} Ng6 {[%emt 0:01:30]} 14. O-O {[%emt 0:01:30]} e5 {[%emt 0:01:30]} (14... Bd7 $17 15. Nc3 Ne8) 15. Nc3 {[%emt 0:00:30]} Be6 {[%emt 0:00:30]} 16. Na4 {[%emt 0:00:30]} Qd6 {[%emt 0:02:30]} 17. dxe5 {[%emt 0:03:30]} Qxe5 {[%emt 0:00:00]} 18. Bd4 {[%emt 0:01:30]} Qg5 {[%emt 0:00:00]} 19. Ra2 {[%emt 0:03:30]} Nh4 {[%emt 0:03:30]} 20. Kh1 {[%emt 0:04:30]} Nf5 {[%emt 0:01:30]} 21. Re2 {[%emt 0:04:30]} Qh6 {[%emt 0:04:30]} 22. Kg1 {[%emt 0:00:30]} Qg5 {[%emt 0:00:30]} 23. Re5 {[%emt 0:03:30]} Qf4 {[%emt 0:04:30]} 24. Bc3 $2 {[%emt 0:03:30]} (24. Bb2 $1 $11 {and White is okay.}) 24... d4 {[%emt 0:07:30]} 25. Rxf5 {[%emt 0:01:30]} Qxf5 {[%emt 0:01:30]} 26. Bc2 {[%emt 0:03:30]} Qf4 {[%emt 0:03:30]} 27. Bd2 {[%emt 0:00:00]} (27. Qxd4 $142 Qxd4+ 28. Bxd4) 27... Qd6 {[%emt 0:00:30]} 28. Nc5 {[%emt 0:00:00]} b6 {[%emt 0:00:30]} 29. Ne4 {[%emt 0:02:30]} Nxe4 {[%emt 0:00:30]} 30. fxe4 {[%emt 0:00:30]} (30. Bxe4 $142 Rac8 31. Qb1) 30... d3 {[%emt 0:01:30]} 31. Bb1 {[%emt 0:02:30]} Qd4+ {[%emt 0:01:30]} 32. Kh1 {[%emt 0:00:30]} Qxe4 {[%emt 0:01:30]} 33. Re1 {[%emt 0:00:00]} Qg4 {[%emt 0:00:30]} 34. Qc1 {[%emt 0:07:00]} (34. Qxg4 $142 Bxg4 35. Bxd3) 34... Bd5 {[%emt 0:00:30]} 35. Rg1 {[%emt 0:00:30]} Qe2 {[%emt 0:01:30]} 36. Be3 {[%emt 0:01:30]} Rac8 {[%emt 0:00:30]} 37. Qe1 {[%emt 0:01:30] [#]} Bxg2+ $19 {[%emt 0:00:30]} 0-1

[Event "24th Bosnjaci Open 2019"]
[Site "Bosnjaci"]
[Date "2019.01.08"]
[Round "8.22"]
[White "Mesic, Ismet"]
[Black "Jergovic, Andrija"]
[Result "0-1"]
[ECO "E12"]
[WhiteElo "1757"]
[BlackElo "2012"]
[Annotator "NA"]
[PlyCount "102"]
[EventDate "2019.01.03"]
[EventType "swiss"]
[EventCountry "CRO"]
[SourceTitle "playchess.com"]
[Source "ChessBase"]
[SourceQuality "1"]
[TimeControl "5400+30"]

{[%evp 8,99,17,32767,32767,32767,32767,32767,32767,32767,32767,32767,32767,32767,32767,32767,32767,32767,32767,32767,32767,32767,32767,32767,0,0,19,-5,-9,-19,-6,-1,20,-13,32767,32767,32767,0,14,14,83,50,65,31,53,20,39,36,45,19,43,-16,0,-18,32,32767,32767,32767,0,0,32767,32767,32767,32767,32767,-40,-19,-63,0,0,0,0,10,20,0,0,0,0,32767,32767,32767,32767,-599,-550,-655,-5181,-2058,-29991,-29989,-29989,-29990,-29990,-29991,-29991]} 1. d4 {[%emt 0:00:30]} Nf6 {[%emt 0:00:30]} 2. Nf3 {[%emt 0:00:00]} e6 {[%emt 0:00:30]} 3. c4 {[%emt 0:00:00]} b6 {[%emt 0:00:30]} 4. Nc3 {[%emt 0:00:30]} Bb7 {[%emt 0:00:30] LiveBook: 3992 Games} 5. Bg5 {[%emt 0:00:30]} Be7 {[%emt 0:00:00]} 6. e3 {[%emt 0:00:30]} O-O {[%emt 0:00:00]} 7. Be2 {[%emt 0:00:30]} d6 {[%emt 0:00:00]} 8. O-O {[%emt 0:00:30] E12: Queen's Indian: Unusual White 4th moves, 4 a3, 4 Nc3 Bb7 5 a3 and 4 Nc3 Bb7} Nbd7 {[%emt 0:00:00]} 9. Rc1 {[%emt 0:00:30]} (9. Qc2 Rc8 10. Rad1 c5 11. d5 exd5 12. cxd5 Re8 13. e4 Ng4 14. Bf4 f6 {1-0 (30) Aloma Vidal,R (2440)-Frick,R (2062) Klaksvik 2018}) 9... c5 {[%emt 0:00:30]} 10. b3 {[%emt 0:02:30]} Re8 $146 {[%emt 0:00:30]} ({Predecessor:} 10... Rc8 11. Qc2 Rc7 12. Rfd1 Qa8 13. Nh4 h6 14. Bxf6 Bxf6 {½-½ (85) Winter,R (1523)-Strotmann,H (1599) Germany 2005}) 11. Nd2 {[%emt 0:13:30]} h6 {[%emt 0:01:30]} 12. Bh4 {[%emt 0:00:30]} Rc8 {[%emt 0:01:30]} 13. Bf3 {[%emt 0:02:30]} Qc7 {[%emt 0:00:30]} 14. Bxb7 {[%emt 0:02:30]} Qxb7 {[%emt 0:00:00]} 15. Nf3 {[%emt 0:00:30]} Bf8 {[%emt 0:01:00]} 16. Bg3 {[%emt 0:02:30]} Nh5 {[%emt 0:00:30]} 17. Qe2 {[%emt 0:05:30]} Nxg3 {[%emt 0:00:30]} 18. hxg3 {[%emt 0:00:30]} Nf6 {[%emt 0:01:30]} 19. Rfd1 {[%emt 0:01:30]} Red8 {[%emt 0:00:30]} 20. Rc2 {[%emt 0:06:30]} a6 {[%emt 0:04:30]} 21. dxc5 {[%emt 0:02:30]} bxc5 {[%emt 0:00:30]} 22. e4 {[%emt 0:03:30]} Nd7 {[%emt 0:01:30]} 23. Rcd2 {[%emt 0:04:30]} f6 {[%emt 0:01:30]} (23... Qc7 $11) 24. g4 {[%emt 0:05:30]} Be7 {[%emt 0:01:30]} 25. Na4 {[%emt 0:07:30]} Nf8 {[%emt 0:00:30]} 26. Rd3 {[%emt 0:04:30]} Ng6 {[%emt 0:01:30]} 27. g3 {[%emt 0:00:30]} Kf7 {[%emt 0:01:30]} 28. Nc3 {[%emt 0:01:30]} Rh8 {[%emt 0:01:30]} 29. Nh4 {[%emt 0:08:30]} Ne5 {[%emt 0:00:30]} 30. R3d2 {[%emt 0:00:30]} Qb4 {[%emt 0:04:30]} 31. Na4 {[%emt 0:01:30]} Qb7 {[%emt 0:00:30]} 32. Nc3 {[%emt 0:00:30]} g5 {[%emt 0:02:30]} 33. Ng2 {[%emt 0:01:30]} h5 {[%emt 0:01:30]} 34. Ne3 {[%emt 0:03:49]} h4 {[%emt 0:01:30]} 35. f4 {[%emt 0:03:16]} Nc6 {[%emt 0:00:30]} 36. fxg5 {[%emt 0:01:29]} hxg3 {[%emt 0:00:30]} 37. Qf3 {[%emt 0:00:54]} (37. gxf6 $11 Bxf6 38. Qf3 (38. Rxd6 Bd4 $17)) 37... Ne5 {[%emt 0:05:30]} (37... Nd4 $5 {[%cal Rd4f3]} 38. Qxg3 fxg5 $15) 38. Qf4 $1 {[%emt 0:03:05]} Qb4 {[%emt 0:16:30] [#]} 39. Ncd5 $1 {[%emt 0:01:26]} exd5 {[%emt 0:00:30]} 40. Nxd5 {[%emt 0:00:02]} Qb7 {[%emt 0:01:30]} 41. Nxe7 {[%emt 0:02:37]} Qxe7 {[%emt 0:00:00]} 42. Rxd6 {[%emt 0:00:37] Double Attack} Rc6 {[%emt 0:02:00]} 43. Rxc6 {[%emt 0:03:17]} Nxc6 {[%emt 0:00:30]} 44. Rd6 {[%emt 0:00:10]} Nd4 {[%emt 0:00:30]} 45. Rxf6+ {[%emt 0:05:08]} Kg7 {[%emt 0:01:30]} 46. Qe3 {[%emt 0:01:11]} Qe5 {[%emt 0:10:30]} 47. Rxa6 {[%emt 0:00:53]} Rh2 {[%emt 0:00:30]} 48. Ra7+ {[%emt 0:00:15]} Kf8 {[%emt 0:01:30]} 49. Ra8+ {[%emt 0:01:02]} Ke7 {[%emt 0:01:30]} 50. Ra7+ {[%emt 0:00:33]} Kd8 {[%emt 0:00:30]} 51. Qd3 {[%emt 0:00:16]} Kc8 {[%emt 0:00:30]} 0-1

[Event "24th Bosnjaci Open 2019"]
[Site "Bosnjaci"]
[Date "2019.01.08"]
[Round "8.23"]
[White "Podobnik, Eugen"]
[Black "Radovic, Sinisa"]
[Result "0-1"]
[ECO "B50"]
[WhiteElo "1526"]
[BlackElo "1955"]
[Annotator "NA RC"]
[PlyCount "50"]
[EventDate "2019.01.03"]
[EventType "swiss"]
[EventCountry "CRO"]
[SourceTitle "playchess.com"]
[Source "ChessBase"]
[SourceQuality "1"]
[TimeControl "5400+30"]

{[%evp 20,40,-104,32767,32767,-172,-185,-190,-182,-179,-174,-180,-183,-183,-193,-233,-229,-212,-224,-239,32767,-271,-232]} 1. e4 {[%emt 0:00:30]} c5 {[%emt 0:09:30]} 2. Nf3 {[%emt 0:00:30]} d6 {[%emt 0:00:30]} 3. c3 {[%emt 0:01:30]} Nf6 {[%emt 0:01:30]} 4. d3 {[%emt 0:02:30]} g6 {[%emt 0:00:00]} 5. Bg5 {[%emt 0:00:30] B50: Sicilian: 2...d6, Miscellaneous} (5. g3 Bg7 6. Bg2 O-O 7. O-O Nc6 8. Re1 e5 9. a3 h6 10. b4 a6 11. Bb2 Be6 12. Nbd2 Qc7 13. Rc1 cxb4 14. cxb4 Qe7 15. d4 exd4 16. Nxd4 Nxd4 17. Bxd4 Rac8 18. e5 Rxc1 19. Qxc1 {0-1 (40) Markovic,M (2448)-Ivic,V (2456) Valjevo 2018}) 5... Bg7 {[%emt 0:00:00]} 6. Be2 {[%emt 0:00:30]} h6 {[%emt 0:00:30]} 7. Bh4 {[%emt 0:01:30]} Nc6 {[%emt 0:00:30]} 8. Nbd2 {[%emt 0:04:30]} Nh5 $146 {[%emt 0:01:30]} ({Predecessor:} 8... O-O 9. O-O Qb6 10. Rb1 e5 11. b4 cxb4 12. cxb4 Be6 {1-0 (35) Nicholson,J (2021)-Doell,D (2148) Les Dicqs 2002}) 9. Nb3 {[%emt 0:04:30]} Nf4 {[%emt 0:01:30]} 10. Bg3 {[%emt 0:01:30]} Nxg2+ {[%emt 0:01:30]} 11. Kd2 {[%emt 0:02:30]} h5 {[%emt 0:00:30]} 12. h4 {[%emt 0:01:30]} Bh6+ {[%emt 0:00:30]} 13. Kc2 {[%emt 0:00:30]} Nf4 {[%emt 0:00:00]} 14. Bxf4 {[%emt 0:01:30]} Bxf4 {[%emt 0:00:00]} 15. d4 {[%emt 0:00:30]} cxd4 {[%emt 0:01:30]} 16. Nfxd4 {[%emt 0:00:30]} Bd7 {[%emt 0:01:30]} 17. Qd3 {[%emt 0:01:30]} Ne5 {[%emt 0:02:30]} 18. Qd1 {[%emt 0:03:30]} a6 {[%emt 0:00:00]} 19. Nf3 {[%emt 0:01:30]} Qc7 {[%emt 0:02:00]} 20. Ng5 $19 {[%emt 0:00:30]} O-O-O {[%emt 0:05:30]} 21. Nd2 {[%emt 0:04:30]} Kb8 {[%emt 0:00:30]} 22. Ndf3 {[%emt 0:00:30]} Rc8 {[%emt 0:01:30]} 23. Nxe5 {[%emt 0:00:30]} Ba4+ {[%emt 0:00:30]} 24. b3 {[%emt 0:00:30]} Qxc3+ {[%emt 0:00:30]} 25. Kb1 {[%emt 0:00:30]} Bxe5 {[%emt 0:00:30]} 0-1